fUSD/lending_fUSD_20250207
["ID","MTS","AMOUNT","RATE_DAILY","PERIOD"]
[352086521,1738942235242,-500.0,0.00016707,2]
[352086522,1738942235252,-500.0,0.00016707,2]
[352086523,1738942235262,-500.0,0.00016707,2]
[352086524,1738942235271,-967.376263,0.00016707,2]
[352086525,1738942235281,-500.0,0.00016707,2]
[352086526,1738942235291,-500.0,0.00016707,2]
[352086527,1738942235301,-500.0,0.00016707,2]
[352086528,1738942235310,-500.0,0.00016707,2]
[352086529,1738942235319,-500.0,0.00016707,2]
[352086530,1738942235329,-500.0,0.00016707,2]
[352086531,1738942235338,-500.0,0.00016707,2]
[352086532,1738942235347,-500.0,0.00016707,2]
[352086533,1738942235356,-547.41,0.00016707,2]
[352086534,1738942235366,-500.0,0.00016707,2]
[352086535,1738942235375,-500.32,0.00016707,2]
[352086536,1738942235384,-500.0,0.00016707,2]
[352086537,1738942235393,-500.0,0.00016707,2]
[352086538,1738942235402,-500.0,0.00016707,2]
[352086539,1738942235411,-436.95,0.00016707,2]
[352086540,1738942235421,-500.0,0.00016707,2]
[352086541,1738942235431,-416.2668237,0.00016707,2]
[352086542,1738942235443,-500.0,0.00016707,2]
[352086543,1738942235453,-500.0,0.00016707,2]
[352086544,1738942235462,-500.0,0.00016707,2]
[352086545,1738942235473,-500.0,0.00016707,2]
[352086546,1738942235483,-500.0,0.00016707,2]
[352086547,1738942235493,-500.0,0.00016707,2]
[352086548,1738942235503,-500.0,0.00016707,2]
[352086549,1738942235513,-500.0,0.00016707,2]
[352086550,1738942235524,-500.0,0.00016707,2]
[352086551,1738942235534,-500.0,0.00016707,2]
[352086552,1738942235544,-500.0,0.00016707,2]
[352086553,1738942235553,-500.0,0.00016707,2]
[352086554,1738942235563,-500.0,0.00016707,2]
[352086555,1738942235572,-500.0,0.00016707,2]
[352086556,1738942235582,-500.0,0.00016707,2]
[352086557,1738942235591,-500.0,0.00016707,2]
[352086558,1738942235601,-1034.55,0.00016707,2]
[352086559,1738942235611,-500.0,0.00016707,2]
[352086560,1738942235619,-500.0,0.00016707,2]
[352086561,1738942235629,-500.0,0.00016707,2]
[352086562,1738942235638,-500.0,0.00016707,2]
[352086563,1738942235648,-691.48,0.00016707,2]
[352086564,1738942235657,-500.0,0.00016707,2]
[352086565,1738942235666,-500.0,0.00016707,2]
[352086566,1738942235675,-639.25,0.00016707,2]
[352086567,1738942235688,-500.0,0.00016707,2]
[352086568,1738942235696,-420.07,0.00016707,2]
[352086569,1738942235706,-500.0,0.00016707,2]
[352086570,1738942235716,-500.0,0.00016707,2]
[352086571,1738942235725,-500.0,0.00016707,2]
[352086572,1738942235734,-500.0,0.00016707,2]
[352086573,1738942235744,-500.0,0.00016707,2]
[352086574,1738942235753,-500.0,0.00016707,2]
[352086575,1738942235762,-770.43,0.00016707,2]
[352086576,1738942235772,-500.0,0.00016707,2]
[352086577,1738942235781,-500.0,0.00016707,2]
[352086578,1738942235790,-500.0,0.00016707,2]
[352086579,1738942235799,-500.0,0.00016707,2]
[352086580,1738942235808,-500.0,0.00016707,2]
[352086581,1738942235817,-500.0,0.00016707,2]
[352086582,1738942235827,-500.0,0.00016707,2]
[352086583,1738942235841,-650.36,0.00016707,2]
[352086584,1738942235851,-500.0,0.00016707,2]
[352086585,1738942235860,-724.96,0.00016707,2]
[352086586,1738942235870,-500.0,0.00016707,2]
[352086587,1738942235880,-646.47,0.00016707,2]
[352086588,1738942235889,-735.78,0.00016707,2]
[352086589,1738942235898,-1474.34,0.00016707,2]
[352086590,1738942235908,-500.0,0.00016707,2]
[352086591,1738942235918,-393.07596968,0.00016707,2]
[352086592,1738942235927,-500.0,0.00016707,2]
[352086593,1738942235938,-528.74,0.00016707,2]
[352086594,1738942235947,-563.19,0.00016707,2]
[352086595,1738942235958,-500.0,0.00016707,2]
[352086596,1738942235967,-500.0,0.00016707,2]
[352086597,1738942235976,-1286.21,0.00016707,2]
[352086598,1738942235986,-483.49528933,0.00016707,2]
[352086602,1738942237564,-549.1,0.00016438,2]
[352086603,1738942237574,-36.00093757,0.00016575,2]
[352086604,1738942237586,-463.99906243,0.00016575,2]
[352086605,1738942237596,-25.35471067,0.00016707,2]
[352086606,1738942237762,-865.72,0.00016707,2]
[352086607,1738942237773,-1601.9,0.00016707,2]
[352086608,1738942237783,-500.0,0.00016707,2]
[352086609,1738942237793,-1771.28,0.00016707,2]
[352086610,1738942237803,-587.4962269,0.00016707,2]
[352086611,1738942237819,-232.4437731,0.00016707,2]
[352086612,1738942237829,-500.0,0.00016707,2]
[352086613,1738942237841,-500.0,0.00016707,2]
[352086614,1738942237850,-500.0,0.00016707,2]
[352086615,1738942237860,-500.0,0.00016707,2]
[352086617,1738942237871,-500.0,0.00016707,2]
[352086619,1738942237880,-876.23,0.00016707,2]
[352086621,1738942237889,-500.0,0.00016707,2]
[352086623,1738942237898,-500.0,0.00016707,2]
[352086625,1738942237910,-500.0,0.00016707,2]
[352086627,1738942237921,-501.67380367,0.00016707,2]
[352086629,1738942237931,-500.0,0.00016707,2]
[352086631,1738942237942,-500.0,0.00016707,2]
[352086633,1738942237951,-500.0,0.00016707,2]
[352086635,1738942237961,-500.0,0.00016707,2]
[352086637,1738942237970,-500.0,0.00016708,2]
[352086639,1738942237979,-500.0,0.00016708,2]
[352086641,1738942237989,-500.0,0.00016708,2]
[352086643,1738942237998,-500.0,0.00016708,2]
[352086645,1738942238008,-500.0,0.00016708,2]
[352086647,1738942238018,-500.0,0.00016708,2]
[352086649,1738942238027,-500.0,0.00016708,2]
[352086651,1738942238037,-500.0,0.00016708,2]
[352086653,1738942238047,-500.0,0.00016708,2]
[352086655,1738942238056,-500.0,0.00016708,2]
[352086657,1738942238066,-500.0,0.00016708,2]
[352086659,1738942238075,-500.0,0.00016708,2]
[352086661,1738942238085,-317.31287043,0.00016708,2]
[352086663,1738942238095,-500.0,0.00016708,2]
[352086665,1738942238105,-500.0,0.00016708,2]
[352086666,1738942238114,-471.78,0.00016708,2]
[352086668,1738942238123,-500.0,0.00016708,2]
[352086670,1738942238132,-500.0,0.00016708,2]
[352086671,1738942238142,-500.0,0.00016708,2]
[352086672,1738942238152,-500.0,0.00016708,2]
[352086673,1738942238162,-500.0,0.00016708,2]
[352086675,1738942238171,-500.0,0.00016708,2]
[352086677,1738942238181,-500.0,0.00016708,2]
[352086679,1738942238198,-500.0,0.00016708,2]
[352086681,1738942238210,-500.0,0.00016708,2]
[352086683,1738942238220,-500.0,0.00016708,2]
[352086685,1738942238229,-500.0,0.00016708,2]
[352086687,1738942238239,-500.0,0.00016708,2]
[352086689,1738942238248,-500.0,0.00016708,2]
[352086691,1738942238257,-500.0,0.00016708,2]
[352086693,1738942238267,-500.0,0.00016708,2]
[352086695,1738942238276,-500.0,0.00016708,2]
[352086697,1738942238285,-500.0,0.00016708,2]
[352086699,1738942238294,-423.37162483,0.00016708,2]
[352086701,1738942238306,-76.62837517,0.00016708,2]
[352086703,1738942238315,-528.76,0.00016708,2]
[352086705,1738942238325,-10.67887666,0.00016708,2]
[352086708,1738942238340,-489.32112334,0.00016708,2]
[352086710,1738942238349,-500.0,0.00016708,2]
[352086712,1738942238358,-412.5,0.00016708,2]
[352086713,1738942238368,-165.32214101,0.00016708,2]
[352086715,1738942238377,-500.0,0.00016708,2]
[352086718,1738942238387,-500.0,0.00016708,2]
[352086719,1738942238397,-500.0,0.00016708,2]
[352086722,1738942238407,-500.0,0.00016708,2]
[352086723,1738942238416,-35.75673561,0.00016708,2]
[352086727,1738942238439,-464.24326439,0.00016708,2]
[352086729,1738942238448,-588.69,0.00016708,2]
[352086730,1738942238458,-524.4,0.00016708,2]
[352086733,1738942238467,-500.0,0.00016708,2]
[352086734,1738942238477,-500.0,0.00016708,2]
[352086736,1738942238486,-620.45,0.00016708,2]
[352086738,1738942238495,-579.68,0.00016708,2]
[352086740,1738942238505,-500.0,0.00016708,2]
[352086742,1738942238515,-500.0,0.00016708,2]
[352086744,1738942238525,-500.0,0.00016708,2]
[352086746,1738942238534,-381.56,0.00016708,2]
[352086748,1738942238543,-500.0,0.00016708,2]
[352086750,1738942238553,-500.0,0.00016708,2]
[352086752,1738942238562,-325.45599862,0.00016708,2]
[352086755,1738942238575,-174.54400138,0.00016708,2]
[352086757,1738942238584,-500.0,0.00016708,2]
[352086759,1738942238593,-500.0,0.00016708,2]
[352086761,1738942238602,-500.0,0.00016708,2]
[352086763,1738942238611,-500.0,0.00016708,2]
[352086765,1738942238621,-500.0,0.00016708,2]
[352086767,1738942238631,-500.0,0.00016708,2]
[352086769,1738942238640,-500.0,0.00016708,2]
[352086770,1738942238649,-500.0,0.00016708,2]
[352086773,1738942238659,-508.02,0.00016708,2]
[352086774,1738942238668,-442.58563647,0.00016708,2]
[352086777,1738942238679,-57.41436353,0.00016708,2]
[352086778,1738942238690,-567.04,0.00016708,2]
[352086779,1738942238699,-7.69874836,0.00016708,2]
[352086780,1738942238711,-492.30125164,0.00016708,2]
[352086781,1738942238721,-447.27575836,0.00016708,2]
[352086782,1738942238733,-52.72424164,0.00016708,2]
[352086783,1738942238743,-500.0,0.00016708,2]
[352086784,1738942238752,-500.0,0.00016708,2]
[352086785,1738942238762,-597.87,0.00016708,2]
[352086786,1738942238771,-186.11014826,0.00016708,2]
[352086868,1738942239546,-500.0,0.00016438,2]
[352086870,1738942239556,-500.0,0.00016575,2]
[352086872,1738942239565,-313.88985174,0.00016708,2]
[352086874,1738942239575,-625.2,0.00016708,2]
[352086876,1738942239584,-500.0,0.00016709,2]
[352086878,1738942239594,-500.0,0.00016709,2]
[352086880,1738942239603,-500.0,0.00016709,2]
[352086882,1738942239613,-500.0,0.00016709,2]
[352086884,1738942239622,-332.60088537,0.00016709,2]
[352086886,1738942239633,-259.14652858,0.00016709,2]
[352086888,1738942239643,-500.0,0.00016709,2]
[352086890,1738942239652,-500.0,0.00016709,2]
[352086892,1738942239661,-500.0,0.00016709,2]
[352086894,1738942239670,-500.0,0.00016709,2]
[352086896,1738942239679,-532.98,0.00016709,2]
[352086898,1738942239690,-500.0,0.00016709,2]
[352086900,1738942239699,-500.0,0.00016709,2]
[352086902,1738942239708,-500.0,0.00016709,2]
[352086904,1738942239718,-610.64,0.00016709,2]
[352086906,1738942239728,-368.03504544,0.00016709,2]
[352086908,1738942239740,-131.96495456,0.00016709,2]
[352086910,1738942239755,-183.05323727,0.00016709,2]
[352086912,1738942239766,-316.94676273,0.00016709,2]
[352086914,1738942239776,-86.31976976,0.00016709,2]
[352086916,1738942239787,-413.68023024,0.00016709,2]
[352086918,1738942239797,-500.0,0.00016709,2]
[352086920,1738942239807,-465.10395289,0.00016709,2]
[352086922,1738942239817,-315.4,0.00016709,2]
[352086924,1738942239830,-500.0,0.00016709,2]
[352086926,1738942239843,-500.0,0.00016709,2]
[352086929,1738942239852,-500.0,0.00016709,2]
[352086931,1738942239862,-500.0,0.00016709,2]
[352086933,1738942239873,-500.0,0.00016709,2]
[352086935,1738942239883,-500.0,0.00016709,2]
[352086937,1738942239893,-648.8,0.00016709,2]
[352086939,1738942239902,-163.79087456,0.00016709,2]
[352086941,1738942239915,-336.20912544,0.00016709,2]
[352086943,1738942239926,-500.0,0.00016709,2]
[352086945,1738942239935,-500.0,0.00016709,2]
[352086947,1738942239947,-527.51,0.00016709,2]
[352086949,1738942239956,-500.0,0.00016709,2]
[352086951,1738942239965,-500.0,0.00016709,2]
[352086953,1738942239974,-500.0,0.00016709,2]
[352086955,1738942239983,-500.0,0.00016709,2]
[352086957,1738942239994,-500.0,0.00016709,2]
[352086959,1738942240003,-500.0,0.00016712,2]
[352086961,1738942240013,-500.0,0.00016712,2]
[352086964,1738942240023,-500.0,0.00016712,2]
[352086966,1738942240032,-500.0,0.00016712,2]
[352086967,1738942240041,-749.21,0.00016712,2]
[352086970,1738942240051,-591.66,0.00016712,2]
[352086972,1738942240060,-515.67,0.00016712,2]
[352086973,1738942240069,-560.65,0.00016712,2]
[352086976,1738942240079,-500.0,0.00016712,2]
[352086977,1738942240089,-500.0,0.00016712,2]
[352086979,1738942240099,-500.0,0.00016712,2]
[352086981,1738942240108,-500.0,0.00016712,2]
[352086983,1738942240118,-500.0,0.00016712,2]
[352086985,1738942240127,-528.38,0.00016712,2]
[352086987,1738942240136,-587.66,0.00016712,2]
[352086989,1738942240146,-500.0,0.00016712,2]
[352086991,1738942240155,-500.0,0.00016712,2]
[352086993,1738942240164,-932.72,0.00016712,2]
[352086995,1738942240174,-500.0,0.00016712,2]
[352086997,1738942240183,-500.0,0.00016712,2]
[352086999,1738942240195,-500.0,0.00016712,2]
[352087001,1738942240205,-500.0,0.00016712,2]
[352087003,1738942240215,-500.0,0.00016712,2]
[352087005,1738942240225,-500.0,0.00016712,2]
[352087007,1738942240234,-787.64,0.00016712,2]
[352087009,1738942240243,-500.0,0.00016712,2]
[352087011,1738942240252,-500.0,0.00016712,2]
[352087013,1738942240261,-500.0,0.00016712,2]
[352087015,1738942240270,-500.0,0.00016712,2]
[352087017,1738942240279,-500.0,0.00016712,2]
[352087019,1738942240288,-500.0,0.00016712,2]
[352087021,1738942240298,-6904.82203652,0.00016789,3]
[352087023,1738942240307,-2594.0454788,0.00016789,2]
[352087025,1738942240316,-511.1977127,0.00016789,2]
[352087027,1738942240325,-272.7158396,0.00016789,2]
[352087029,1738942240335,-500.0,0.00016798,2]
[352087031,1738942240344,-500.0,0.00016798,2]
[352087033,1738942240353,-500.0,0.00016798,2]
[352087035,1738942240362,-500.0,0.00016798,2]
[352087037,1738942240370,-500.0,0.00016798,2]
[352087039,1738942240380,-500.0,0.00016798,2]
[352087041,1738942240388,-500.0,0.00016798,2]
[352087043,1738942240397,-500.0,0.00016798,2]
[352087044,1738942240406,-500.0,0.00016798,2]
[352087047,1738942240418,-350.63,0.00016798,2]
[352087049,1738942240427,-500.0,0.00016798,2]
[352087051,1738942240439,-500.0,0.00016798,2]
[352087053,1738942240449,-500.0,0.00016798,2]
[352087055,1738942240458,-500.0,0.00016798,2]
[352087057,1738942240468,-500.0,0.00016798,2]
[352087059,1738942240479,-500.0,0.00016798,2]
[352087061,1738942240489,-500.0,0.00016798,2]
[352087063,1738942240498,-264.32032354,0.00016798,2]
[352087065,1738942240508,-500.0,0.00016798,2]
[352087067,1738942240517,-500.0,0.00016798,2]
[352087069,1738942240528,-500.0,0.00016798,2]
[352087071,1738942240537,-500.0,0.00016798,2]
[352087073,1738942240546,-500.0,0.00016798,2]
[352087074,1738942240555,-500.0,0.00016798,2]
[352087075,1738942240564,-505.21186912,0.00016798,2]
[352087076,1738942240574,-500.0,0.00016798,2]
[352087077,1738942240583,-500.0,0.00016798,2]
[352087078,1738942240593,-500.0,0.00016798,2]
[352087079,1738942240602,-500.0,0.00016798,2]
[352087080,1738942240611,-500.0,0.00016798,2]
[352087081,1738942240621,-500.0,0.00016798,2]
[352087082,1738942240631,-425.52132083,0.00016798,2]
[352087084,1738942240643,-74.47867917,0.00016798,2]
[352087086,1738942240652,-500.0,0.00016798,2]
[352087088,1738942240661,-452.95882345,0.00016798,2]
[352087090,1738942240673,-47.04117655,0.00016798,2]
[352087092,1738942240682,-500.0,0.00016798,2]
[352087094,1738942240693,-177.84626278,0.00016798,2]
[352087096,1738942240703,-502.950106,0.00016798,2]
[352087098,1738942240712,-135.85080396,0.00016798,2]
[352087100,1738942240724,-364.14919604,0.00016798,2]
[352087102,1738942240733,-500.0,0.00016798,2]
[352087104,1738942240743,-352.75522056,0.00016798,2]
[352087107,1738942240754,-147.24477944,0.00016798,2]
[352087109,1738942240763,-194.13020828,0.00016798,2]
[352087111,1738942240774,-305.86979172,0.00016798,2]
[352087113,1738942240784,-500.0,0.00016798,2]
[352087115,1738942240793,-500.0,0.00016798,2]
[352087117,1738942240802,-500.0,0.00016798,2]
[352087119,1738942240811,-476.88126753,0.00016798,2]
[352087121,1738942240825,-23.11873247,0.00016798,2]
[352087123,1738942240834,-500.0,0.00016798,2]
[352087125,1738942240843,-500.0,0.00016798,2]
[352087127,1738942240852,-500.0,0.00016798,2]
[352087129,1738942240861,-500.0,0.00016798,2]
[352087131,1738942240871,-500.0,0.00016798,2]
[352087133,1738942240880,-500.0,0.00016798,2]
[352087135,1738942240890,-500.0,0.00016798,2]
[352087137,1738942240900,-502.40204406,0.00016798,2]
[352087139,1738942240912,-500.0,0.00016798,2]
[352087141,1738942240921,-500.0,0.00016798,2]
[352087143,1738942240931,-500.0,0.00016798,2]
[352087145,1738942240943,-500.0,0.00016798,2]
[352087147,1738942240952,-500.0,0.00016798,2]
[352087149,1738942240961,-500.0,0.00016798,2]
[352087151,1738942240971,-500.0,0.00016798,2]
[352087153,1738942240980,-502.59937442,0.00016798,2]
[352087155,1738942240989,-500.0,0.00016798,2]
[352087157,1738942240999,-500.0,0.00016798,2]
[352087159,1738942241008,-518.2,0.00016798,2]
[352087161,1738942241017,-179.37,0.00016798,2]
[352087163,1738942241027,-500.0,0.00016798,2]
[352087165,1738942241038,-500.0,0.00016798,2]
[352087167,1738942241047,-500.0,0.00016798,2]
[352087169,1738942241056,-559.77,0.00016798,2]
[352087171,1738942241066,-500.0,0.00016798,2]
[352087173,1738942241075,-500.0,0.00016798,2]
[352087175,1738942241085,-500.0,0.00016798,2]
[352087177,1738942241096,-500.0,0.00016798,2]
[352087179,1738942241105,-500.0,0.00016798,2]
[352087181,1738942241115,-500.0,0.00016798,2]
[352087183,1738942241125,-500.0,0.00016798,2]
[352087185,1738942241135,-154.42,0.00016798,2]
[352087187,1738942241146,-500.0,0.00016798,2]
[352087189,1738942241156,-500.0,0.00016798,2]
[352087191,1738942241166,-472.0,0.00016798,2]
[352087193,1738942241176,-240.32806218,0.00016798,2]
[352087195,1738942241186,-500.0,0.00016798,2]
[352087197,1738942241201,-500.0,0.00016798,2]
[352087199,1738942241211,-500.0,0.00016798,2]
[352087201,1738942241220,-500.0,0.00016798,2]
[352087203,1738942241231,-500.0,0.00016798,2]
[352087205,1738942241241,-500.0,0.00016798,2]
[352087207,1738942241250,-500.0,0.00016798,2]
[352087209,1738942241260,-500.0,0.00016798,2]
[352087211,1738942241270,-500.0,0.00016798,2]
[352087213,1738942241279,-500.0,0.00016798,2]
[352087215,1738942241288,-500.0,0.00016798,2]
[352087217,1738942241298,-500.0,0.00016798,2]
[352087219,1738942241308,-500.0,0.00016798,2]
[352087221,1738942241317,-500.0,0.00016798,2]
[352087223,1738942241326,-381.6314175,0.00016798,2]
[352087225,1738942241336,-500.0,0.00016798,2]
[352087227,1738942241346,-500.0,0.00016798,2]
[352087229,1738942241355,-500.0,0.00016798,2]
[352087231,1738942241364,-500.0,0.00016798,2]
[352087233,1738942241374,-500.0,0.00016798,2]
[352087235,1738942241383,-500.0,0.00016798,2]
[352087237,1738942241392,-500.0,0.00016798,2]
[352087239,1738942241402,-500.0,0.00016798,2]
[352087241,1738942241411,-500.0,0.00016798,2]
[352087243,1738942241420,-500.0,0.00016798,2]
[352087245,1738942241430,-500.0,0.00016798,2]
[352087247,1738942241443,-311.25,0.00016798,2]
[352087249,1738942241452,-500.0,0.00016798,2]
[352087251,1738942241461,-500.0,0.00016798,2]
[352087253,1738942241475,-500.0,0.00016798,2]
[352087255,1738942241484,-500.0,0.00016798,2]
[352087257,1738942241493,-225.62,0.00016798,2]
[352087259,1738942241502,-500.0,0.00016798,2]
[352087261,1738942241511,-480.53,0.00016798,2]
[352087263,1738942241521,-500.0,0.00016798,2]
[352087265,1738942241531,-500.0,0.00016798,2]
[352087267,1738942241539,-500.0,0.00016798,2]
[352087269,1738942241549,-500.0,0.00016798,2]
[352087271,1738942241558,-368.87455766,0.00016798,2]
[352087273,1738942241567,-500.0,0.00016798,2]
[352087275,1738942241576,-500.0,0.00016798,2]
[352087277,1738942241584,-500.0,0.00016798,2]
[352087279,1738942241593,-500.0,0.00016798,2]
[352087281,1738942241603,-500.0,0.00016798,2]
[352087283,1738942241612,-500.0,0.00016798,2]
[352087285,1738942241621,-500.0,0.00016798,2]
[352087287,1738942241630,-500.0,0.00016798,2]
[352087289,1738942241639,-500.0,0.00016798,2]
[352087291,1738942241648,-500.0,0.00016798,2]
[352087293,1738942241657,-500.0,0.00016798,2]
[352087295,1738942241666,-500.0,0.00016798,2]
[352087297,1738942241675,-2199.63,0.00016798,2]
[352087299,1738942241684,-500.0,0.00016798,2]
[352087301,1738942241697,-612.78,0.00016798,2]
[352087303,1738942241706,-402.34881465,0.00016798,2]
[352087305,1738942241716,-500.0,0.00016798,2]
[352087321,1738942241861,-500.0,0.00016798,2]
[352087323,1738942241871,-500.0,0.00016798,7]
[352087325,1738942241881,-531.82008238,0.00016798,2]
[352087327,1738942241890,-500.0,0.00016798,2]
[352087329,1738942241902,-500.0,0.00016798,2]
[352087331,1738942241912,-500.0,0.00016798,2]
[352087333,1738942241921,-500.0,0.00016798,2]
[352087335,1738942241931,-500.0,0.00016798,2]
[352087337,1738942241941,-500.0,0.00016798,2]
[352087339,1738942241950,-709.36,0.00016798,2]
[352087341,1738942241959,-500.0,0.00016798,2]
[352087343,1738942241968,-599.5,0.00016798,2]
[352087345,1738942241977,-500.0,0.00016798,2]
[352087347,1738942241987,-500.0,0.00016798,2]
[352087349,1738942241997,-1000.0,0.00016798,2]
[352087351,1738942242007,-1047.72,0.00016798,2]
[352087353,1738942242016,-500.0,0.00016798,2]
[352087355,1738942242025,-500.0,0.00016798,2]
[352087357,1738942242034,-500.0,0.00016798,2]
[352087359,1738942242043,-500.0,0.00016798,2]
[352087361,1738942242052,-500.0,0.00016798,2]
[352087363,1738942242063,-500.0,0.00016798,2]
[352087365,1738942242071,-500.0,0.00016798,2]
[352087367,1738942242081,-812.78,0.00016798,2]
[352087369,1738942242091,-326.4,0.00016798,2]
[352087371,1738942242101,-500.0,0.00016799,2]
[352087373,1738942242112,-150.0,0.00016799,2]
[352087375,1738942242121,-500.0,0.00016799,2]
[352087377,1738942242131,-500.0,0.00016799,2]
[352087379,1738942242140,-500.0,0.00016799,2]
[352087381,1738942242149,-500.0,0.00016799,2]
[352087383,1738942242161,-500.0,0.00016799,2]
[352087385,1738942242170,-500.0,0.00016799,2]
[352087387,1738942242179,-500.0,0.00016799,2]
[352087389,1738942242191,-500.0,0.00016799,2]
[352087391,1738942242200,-500.0,0.00016799,2]
[352087393,1738942242210,-500.0,0.00016799,2]
[352087395,1738942242219,-276.6894,0.00016799,2]
[352087398,1738942242229,-500.0,0.00016799,2]
[352087401,1738942242238,-500.0,0.00016799,2]
[352087402,1738942242248,-500.0,0.00016799,2]
[352087403,1738942242256,-500.0,0.00016799,2]
[352087404,1738942242265,-500.0,0.00016799,2]
[352087405,1738942242274,-500.0,0.00016799,2]
[352087406,1738942242283,-500.0,0.00016799,2]
[352087407,1738942242292,-500.0,0.00016799,2]
[352087408,1738942242301,-500.0,0.00016799,2]
[352087409,1738942242309,-500.0,0.00016799,2]
[352087410,1738942242318,-500.0,0.00016799,2]
[352087411,1738942242327,-999.0,0.00016799,2]
[352087413,1738942242336,-1851.0,0.000168,2]
[352087415,1738942242346,-45715.51215767,0.000168,3]
[352087417,1738942242358,-131345.34435701,0.000168,3]
[352087442,1738942242562,-98370.22581886,0.000168,3]
[352087444,1738942242574,-4065.29515768,0.000168,3]
[352087447,1738942242595,-2008.9804518,0.000168,3]
[352087449,1738942242606,-282.53633392,0.000168,3]
[352087452,1738942242620,-49004.0,0.000168,3]
[352087454,1738942242636,-2001.64840834,0.000168,3]
[352087458,1738942242667,-2322.97158386,0.000168,3]
[352087464,1738942242704,-1983.1999998,0.000168,3]
[352087497,1738942243014,-500.0,0.00016438,2]
[352087499,1738942243023,-7980.93069984,0.000168,3]
[352087502,1738942243041,-116137.20823643,0.000168,3]
[352087766,1738942245642,-260.74,0.00016438,2]
[352087773,1738942245675,-239.26,0.00016438,2]
[352087775,1738942245685,-644.79904289,0.00016438,2]
[352087777,1738942245697,-500.0,0.00016438,2]
[352087779,1738942245706,-500.0,0.00016438,2]
[352087781,1738942245715,-500.0,0.00016571,2]
[352087783,1738942245725,-500.0,0.00016575,2]
[352087785,1738942245734,-500.0,0.00016707,2]
[352087787,1738942245744,-500.0,0.00016707,2]
[352087789,1738942245753,-500.0,0.00016707,2]
[352087791,1738942245763,-500.0,0.00016712,2]
[352087793,1738942245772,-500.0,0.00016798,2]
[352087795,1738942245781,-19158.63062041,0.000168,3]
[352087797,1738942245793,-527.9,0.000168,3]
[352087800,1738942245808,-967.1442304,0.000168,3]
[352087802,1738942245820,-63322.40000033,0.000168,3]
[352087804,1738942245830,-210283.97545124,0.000168,3]
[352087806,1738942245844,-744.6166125,0.000168,3]
[352087808,1738942245855,-1453.42189526,0.000168,3]
[352087816,1738942245920,-4600.9855386,0.000168,3]
[352087818,1738942245931,-818.00411949,0.000168,3]
[352087820,1738942245944,-1016.60000025,0.000168,3]
[352087822,1738942245956,-49226.60569796,0.000168,3]
[352087824,1738942245968,-396.22367943,0.000168,3]
[352087827,1738942245984,-500.0,0.00016575,2]
[352087829,1738942245994,-18601.578434,0.000168,3]
[352087832,1738942246007,-435.15,0.000168,3]
[352087834,1738942246019,-5202.12015012,0.000168,3]
[352087843,1738942246101,-1589.99999987,0.000168,3]
[352087846,1738942246113,-2193.84316949,0.000168,3]